bitfinex/quotes_BTCUSD_20251226
["timestamp","ask_amount","ask_price","bid_price","bid_amount"]
[1766726546375,0.01125074,88883.0,88870.0,0.01128]
[1766726547433,0.01125087,88882.0,88870.0,0.01128]
[1766726548381,0.01125099,88881.0,88870.0,0.01128]
[1766726548922,0.01125087,88882.0,88870.0,0.01128]
[1766726551063,0.01125087,88882.0,88867.0,0.01125277]
[1766726551260,0.01125087,88882.0,88871.0,0.01128]
[1766726551556,0.01125087,88882.0,88866.0,0.01125289]
[1766726551754,0.01125087,88882.0,88867.0,0.01128]
[1766726551959,0.01125087,88882.0,88868.0,0.01128]
[1766726554286,0.06750477,88883.0,88868.0,0.01128]
[1766726554603,0.024316,88885.0,88868.0,0.01128]
[1766726554889,0.01124973,88891.0,88868.0,0.01128]
[1766726554890,0.01055292,88884.0,88868.0,0.01128]
[1766726555053,0.01124973,88891.0,88868.0,0.01128]
[1766726555276,0.02180277,88890.0,88868.0,0.01128]
[1766726555457,0.01055292,88889.0,88868.0,0.01128]
[1766726555668,0.01055292,88888.0,88872.0,0.01125213]
[1766726555986,0.01055292,88887.0,88873.0,0.01125201]
[1766726556186,0.01055292,88886.0,88873.0,0.01125201]
[1766726556398,0.04263432,88893.0,88876.0,0.01125163]
[1766726556399,0.01055292,88885.0,88876.0,0.01125163]
[1766726556601,0.001,88893.0,88878.0,0.06750826]
[1766726556809,0.01055262,88892.0,88878.0,0.01125137]
[1766726557005,0.01055262,88891.0,88878.0,0.01125137]
[1766726557202,0.01055262,88890.0,88878.0,0.01125137]
[1766726557407,0.01055262,88889.0,88879.0,0.01125125]
[1766726557607,0.01055262,88888.0,88879.0,0.01125125]
[1766726557811,0.01055262,88887.0,88879.0,0.01125125]
[1766726558012,0.01055262,88886.0,88880.0,0.01125112]
[1766726558349,0.01055262,88885.0,88880.0,0.01125112]
[1766726558554,0.001,88893.0,88880.0,0.01125112]
[1766726558712,0.01055308,88892.0,88882.0,0.01125087]
[1766726558912,0.01055308,88891.0,88884.0,0.0562528]
[1766726559118,0.01055308,88890.0,88886.0,0.01125036]
[1766726559323,0.01055308,88889.0,88886.0,0.01125036]
[1766726559522,0.01055308,88888.0,88885.0,0.02253049]
[1766726559729,0.01055308,88887.0,88885.0,0.02253049]
[1766726559909,0.001,88893.0,88885.0,0.01128]
[1766726560110,0.01055289,88892.0,88885.0,0.01128]
[1766726560380,0.001,88893.0,88885.0,0.01128]
[1766726560381,0.01055289,88891.0,88885.0,0.02253049]
[1766726560580,0.001,88893.0,88885.0,0.02253049]
[1766726560581,0.01055289,88890.0,88885.0,0.02253049]
[1766726560781,0.01055289,88889.0,88885.0,0.02253049]
[1766726560984,0.01055289,88888.0,88885.0,0.02253049]
[1766726561291,0.01055289,88887.0,88885.0,0.02253049]
[1766726561434,0.001,88893.0,88885.0,0.02253049]
[1766726561632,0.01055304,88892.0,88885.0,0.02253049]
[1766726561830,0.01055304,88891.0,88885.0,0.01128]
[1766726562094,0.01055304,88890.0,88885.0,0.02253049]
[1766726562253,0.01055304,88889.0,88885.0,0.01128]
[1766726562446,0.01055304,88888.0,88885.0,0.02253049]
[1766726562720,0.01055304,88887.0,88885.0,0.02253049]
[1766726562909,0.001,88893.0,88886.0,0.01125036]
[1766726563109,0.01055296,88892.0,88885.0,0.02253049]
[1766726563313,0.01055296,88891.0,88885.0,0.02253049]
[1766726563513,0.01055296,88890.0,88885.0,0.02253049]
[1766726563675,0.01055296,88889.0,88885.0,0.02253049]
[1766726563875,0.01055296,88888.0,88885.0,0.02253049]
[1766726564138,0.001,88893.0,88886.0,0.01125036]
[1766726564328,0.01055276,88892.0,88886.0,0.01125036]
[1766726564532,0.01055276,88891.0,88885.0,0.01128]
[1766726564710,0.01055276,88890.0,88885.0,0.01128]
[1766726565030,0.01055276,88889.0,88885.0,0.01128]
[1766726565191,0.01055276,88888.0,88885.0,0.01128]
[1766726565390,0.001,88893.0,88885.0,0.01128]
[1766726565593,0.01055268,88892.0,88885.0,0.01128]
[1766726565810,0.01055268,88891.0,88885.0,0.01128]
[1766726566029,0.01055268,88890.0,88885.0,0.01128]
[1766726566205,0.01055268,88889.0,88885.0,0.01128]
[1766726566412,0.01055268,88888.0,88885.0,0.01128]
[1766726566635,0.001,88893.0,88885.0,0.01128]
[1766726566853,0.0105526,88892.0,88885.0,0.01128]
[1766726567026,0.0105526,88891.0,88885.0,0.01128]
[1766726567211,0.0105526,88890.0,88885.0,0.01128]
[1766726567410,0.0105526,88889.0,88885.0,0.01128]
[1766726567769,0.0105526,88888.0,88885.0,0.01128]
[1766726567974,0.001,88893.0,88885.0,0.01128]
[1766726568136,0.01055248,88892.0,88885.0,0.010731]
[1766726568337,0.01055248,88891.0,88885.0,0.010731]
[1766726568539,0.01055248,88890.0,88885.0,0.010731]
[1766726568757,0.01055248,88889.0,88885.0,0.010731]
[1766726569037,0.01055248,88888.0,88885.0,0.010731]
[1766726569245,0.01224947,88893.0,88885.0,0.010731]
[1766726569443,0.01055221,88892.0,88885.0,0.010731]
[1766726569662,0.01055221,88891.0,88885.0,0.010731]
[1766726569867,0.01055221,88890.0,88885.0,0.010731]
[1766726570018,0.01055221,88889.0,88885.0,0.010731]
[1766726570238,0.01055221,88888.0,88885.0,0.010731]
[1766726570597,0.001,88893.0,88885.0,0.010731]
[1766726570781,0.01055207,88892.0,88885.0,0.010731]
[1766726570945,0.001,88893.0,88885.0,0.010731]
[1766726570946,0.01055207,88891.0,88885.0,0.010731]
[1766726571146,0.01055207,88890.0,88885.0,0.010731]
[1766726571388,0.01055207,88889.0,88885.0,0.010731]
[1766726571607,0.01055207,88888.0,88885.0,0.010731]
[1766726571794,0.01224947,88893.0,88885.0,0.010731]
[1766726572102,0.01055195,88892.0,88885.0,0.010731]
[1766726572308,0.01224947,88893.0,88885.0,0.010731]
[1766726572309,0.01055195,88891.0,88885.0,0.010731]
[1766726572460,0.01055195,88890.0,88885.0,0.010731]
[1766726572667,0.01055195,88889.0,88885.0,0.010731]
[1766726572880,0.01055195,88888.0,88885.0,0.010731]
[1766726573097,0.001,88893.0,88885.0,0.010731]
[1766726573295,0.01055176,88892.0,88885.0,0.010731]
[1766726573497,0.01055176,88891.0,88885.0,0.010731]
[1766726573692,0.01055176,88890.0,88885.0,0.010731]
[1766726573896,0.01055176,88889.0,88885.0,0.010731]
[1766726574080,0.01055176,88888.0,88885.0,0.010731]
[1766726574285,0.01224947,88893.0,88885.0,0.010731]
[1766726574484,0.01055169,88892.0,88885.0,0.010731]
[1766726574685,0.01055169,88891.0,88885.0,0.010731]
[1766726574895,0.01055169,88890.0,88885.0,0.010731]
[1766726575094,0.01055169,88889.0,88885.0,0.010731]
[1766726575434,0.01055169,88888.0,88885.0,0.010731]
[1766726575615,0.001,88893.0,88885.0,0.010731]
[1766726575814,0.01055163,88892.0,88885.0,0.010731]
[1766726576015,0.01055163,88891.0,88885.0,0.010731]
[1766726576220,0.01055163,88890.0,88885.0,0.010731]
[1766726576532,0.01055163,88889.0,88885.0,0.010731]
[1766726576744,0.01055163,88888.0,88885.0,0.010731]
[1766726576948,0.001,88893.0,88885.0,0.010731]
[1766726577237,0.01055159,88892.0,88885.0,0.010731]
[1766726577444,0.01055159,88891.0,88885.0,0.010731]
[1766726577624,0.01055159,88890.0,88885.0,0.010731]
[1766726577842,0.01055159,88889.0,88885.0,0.010731]
[1766726578040,0.001,88893.0,88885.0,0.010731]
[1766726578041,0.01055159,88888.0,88885.0,0.010731]
[1766726578272,0.001,88893.0,88885.0,0.010731]
[1766726578482,0.01055156,88892.0,88885.0,0.010731]
[1766726578673,0.01055156,88891.0,88885.0,0.010731]
[1766726578873,0.01055156,88890.0,88885.0,0.010731]
[1766726579094,0.01055156,88889.0,88885.0,0.010731]
[1766726579323,0.01055156,88888.0,88885.0,0.010731]
[1766726579539,0.001,88893.0,88885.0,0.010731]
[1766726579767,0.01055178,88892.0,88885.0,0.010731]
[1766726579990,0.01055178,88891.0,88885.0,0.010731]
[1766726580218,0.01055178,88890.0,88885.0,0.010731]
[1766726580444,0.01055178,88889.0,88885.0,0.010731]
[1766726580642,0.01055178,88888.0,88885.0,0.010731]
[1766726580806,0.001,88893.0,88885.0,0.010731]
[1766726581008,0.01055199,88892.0,88885.0,0.010731]
[1766726581326,0.01055199,88891.0,88885.0,0.010731]
[1766726581500,0.01055199,88890.0,88886.0,0.01128]
[1766726581714,0.01055199,88890.0,88887.0,0.01073]
[1766726581904,0.01055199,88889.0,88887.0,0.01073]
[1766726582107,0.01055199,88888.0,88887.0,0.01073]
[1766726582303,0.01055199,88891.0,88887.0,0.01073]
[1766726582530,0.01055199,88890.0,88887.0,0.01073]
[1766726582731,0.01055199,88889.0,88887.0,0.01073]
[1766726582965,0.0112496,88892.0,88887.0,0.01073]
[1766726583175,0.01055271,88891.0,88887.0,0.01073]
[1766726583348,0.01055271,88890.0,88887.0,0.01073]
[1766726583576,0.01055271,88889.0,88887.0,0.01073]
[1766726583731,0.01055271,88888.0,88887.0,0.01073]
[1766726583929,0.01055318,88892.0,88888.0,0.000549]
[1766726584191,0.01055318,88891.0,88887.0,0.01073]
[1766726584397,0.01055318,88890.0,88887.0,0.01073]
[1766726584596,0.01055318,88889.0,88887.0,0.01128]
[1766726584754,0.01055318,88888.0,88887.0,0.01128]
[1766726585139,0.001,88893.0,88887.0,0.01128]
[1766726585534,0.01224947,88893.0,88887.0,0.01128]
[1766726586650,0.0112496,88892.0,88887.0,0.01128]
[1766726587395,0.01224947,88893.0,88887.0,0.01128]
[1766726588242,0.01124973,88891.0,88887.0,0.010731]
[1766726588473,0.01124985,88890.0,88887.0,0.010731]
[1766726588680,0.0112496,88892.0,88887.0,0.010731]
[1766726590481,0.01124973,88891.0,88887.0,0.010731]
[1766726590831,0.01224947,88893.0,88887.0,0.010731]
[1766726591494,0.0112496,88892.0,88887.0,0.010731]
[1766726591692,0.01224947,88893.0,88887.0,0.010731]
[1766726593453,0.0112496,88892.0,88887.0,0.010731]
[1766726594587,0.01124973,88891.0,88887.0,0.010731]
[1766726594863,0.0112496,88892.0,88887.0,0.010731]
[1766726595321,0.01124973,88891.0,88887.0,0.010731]
[1766726596466,0.0355656,88892.0,88887.0,0.010731]
[1766726596611,0.04502016,88892.0,88887.0,0.010731]
[1766726597110,0.01055748,88891.0,88887.0,0.010731]
[1766726597361,0.01055748,88890.0,88887.0,0.010731]
[1766726597567,0.01055748,88889.0,88887.0,0.010731]
[1766726597748,0.01055748,88888.0,88887.0,0.010731]
[1766726598112,0.00945848,88888.0,88887.0,0.010731]
[1766726606375,0.00945848,88888.0,88887.0,0.01049849]
[1766726608132,0.00945848,88888.0,88887.0,0.00851849]
[1766726611295,0.03656547,88893.0,88887.0,0.00851849]
[1766726611499,0.03377056,88891.0,88887.0,0.00851849]
[1766726611694,0.01055701,88890.0,88887.0,0.00851849]
[1766726611894,0.01055701,88889.0,88887.0,0.00851849]
[1766726612098,0.01055701,88888.0,88887.0,0.00851849]
[1766726613944,0.01055701,88888.0,88887.0,0.00699337]
[1766726618653,0.01055701,88888.0,88887.0,1e-08]
[1766726628953,0.03038485,88897.0,88894.0,0.01124935]
[1766726629152,0.06069939,88907.0,88891.0,0.01124973]
[1766726629153,0.03038485,88907.0,88901.0,0.01124846]
[1766726629354,0.02483082,88914.0,88908.0,0.01004493]
[1766726629707,0.01125024,88909.0,88907.0,0.06748545]
[1766726629841,0.01125024,88909.0,88906.0,0.06748664]
[1766726629842,0.03038485,88920.0,88911.0,0.0112472]
[1766726630047,0.01128,88923.0,88917.0,0.01124644]
[1766726630270,0.01128,88923.0,88918.0,0.02382423]
[1766726630446,0.01128,88923.0,88919.0,0.01124619]
[1766726630659,0.01128,88923.0,88920.0,0.01124606]
[1766726630891,0.01355082,88928.0,88926.0,0.02246425]
[1766726631230,0.01355082,88928.0,88923.0,0.01124568]
[1766726631231,0.01355082,88928.0,88923.0,0.01093422]
[1766726631408,0.03376175,88926.0,88925.0,0.01124543]
[1766726631610,0.01355082,88928.0,88925.0,0.01124543]
[1766726631791,0.01355082,88928.0,88926.0,0.05622606]
[1766726631987,0.05628,88935.0,88931.0,0.01124467]
[1766726632192,0.000549,88931.0,88930.0,0.01124479]
[1766726632491,0.05628,88935.0,88929.0,0.05619556]
[1766726632696,0.01128,88935.0,88932.0,0.01124454]
[1766726633029,0.0004,88940.0,88935.0,0.01124416]
[1766726633157,0.0004,88940.0,88937.0,0.01124391]
[1766726633373,1e-08,88940.0,88938.0,0.05621831]
[1766726635681,1e-08,88940.0,88939.0,0.01128]
[1766726636090,0.001099,88939.0,88934.0,0.01124429]
[1766726636312,0.001099,88939.0,88935.0,0.01128]
[1766726636515,1e-08,88940.0,88935.0,0.00367392]
[1766726636713,1e-08,88940.0,88935.0,0.00277216]
[1766726637233,1e-08,88940.0,88935.0,0.00167316]
[1766726640950,0.01355082,88937.0,88913.0,0.11463]
[1766726641157,0.01124404,88936.0,88914.0,0.01128]
[1766726641371,0.0002,88930.0,88920.0,2.2e-07]
[1766726641742,0.0002,88930.0,88927.0,0.01124517]
[1766726642115,0.0002,88930.0,88923.0,0.01124568]
[1766726642735,0.01355082,88929.0,88922.0,0.01124581]
[1766726643168,0.01355082,88929.0,88921.0,0.01124593]
[1766726643586,0.01355082,88929.0,88922.0,0.01124581]
[1766726644494,0.00087277,88929.0,88923.0,0.01124568]
[1766726644695,0.01128,88936.0,88920.0,0.0562299]
[1766726644901,0.01128,88936.0,88926.0,0.0112453]
[1766726645737,0.01128,88936.0,88928.0,0.06746991]
[1766726646117,0.01128,88936.0,88928.0,0.01124505]
[1766726646363,0.01128,88936.0,88929.0,0.01124492]
[1766726646560,0.01128,88936.0,88931.0,0.01124467]
[1766726646942,0.01128,88936.0,88930.0,0.01124479]
[1766726647608,0.01128,88936.0,88930.0,0.06746824]
[1766726647805,0.01128,88936.0,88929.0,0.01124492]
[1766726647953,0.01128,88936.0,88931.0,0.01124467]
[1766726648154,0.01128,88936.0,88929.0,0.01124492]
[1766726648390,0.01128,88936.0,88931.0,0.01124467]
[1766726648989,0.01128,88936.0,88930.0,0.01124479]
[1766726649170,0.01128,88936.0,88929.0,0.01124492]
[1766726649382,0.01138778,88936.0,88926.0,0.0112453]
[1766726650167,0.01138778,88936.0,88928.0,0.01124505]
[1766726650955,0.000549,88928.0,88925.0,0.01124543]
[1766726651396,0.01138778,88936.0,88927.0,0.01124517]
[1766726652411,0.01138778,88936.0,88926.0,0.0112453]
[1766726652829,0.01138778,88936.0,88928.0,0.01124505]
[1766726653024,0.01138778,88936.0,88927.0,0.01124517]
[1766726653256,1e-08,88940.0,88936.0,0.00055]
[1766726653450,1e-08,88940.0,88933.0,0.05567172]
[1766726653690,1e-08,88940.0,88937.0,0.01124391]
[1766726654169,1e-08,88940.0,88936.0,0.01124404]
[1766726654381,1e-08,88940.0,88935.0,0.01124416]
[1766726654538,1e-08,88940.0,88936.0,0.01124404]
[1766726655161,1e-08,88940.0,88935.0,0.01124416]
[1766726655988,1e-08,88940.0,88933.0,0.01124441]
[1766726656188,1e-08,88940.0,88935.0,0.01124416]
[1766726656522,1e-08,88940.0,88936.0,0.01124404]
[1766726656928,1e-08,88940.0,88935.0,0.01124416]
[1766726657490,0.01051163,88939.0,88935.0,0.01124416]
[1766726657686,1e-08,88940.0,88935.0,0.01124416]
[1766726657889,0.01051163,88939.0,88935.0,0.01124416]
[1766726658090,1e-08,88940.0,88935.0,0.01124416]
[1766726658295,0.01051163,88939.0,88935.0,0.01124416]
[1766726658516,0.01051163,88938.0,88935.0,0.01124416]
[1766726658748,0.01051163,88937.0,88933.0,0.01124441]
[1766726658880,1e-08,88940.0,88939.0,0.0562183]
[1766726659274,0.01053084,88940.0,88939.0,0.0562183]
[1766726659538,0.01128,88946.0,88939.0,0.06746196]
[1766726659833,0.01128,88946.0,88942.0,0.01124328]
[1766726660239,0.01128,88946.0,88943.0,0.01124315]
[1766726660467,0.01128,88946.0,88942.0,0.01124328]
[1766726660644,0.01128,88946.0,88941.0,0.0112434]
[1766726660877,0.01128,88946.0,88940.0,0.06746061]
[1766726661138,0.01128,88946.0,88943.0,0.01124315]
[1766726661528,0.01128,88946.0,88942.0,0.05621608]
[1766726661655,0.01128,88946.0,88943.0,0.01124315]
[1766726661853,0.01128,88946.0,88942.0,0.03370267]
[1766726662052,0.00886936,88946.0,88944.0,0.05621514]
[1766726662515,0.02417046,88948.0,88945.0,0.06745682]
[1766726662920,0.01395082,88951.0,88945.0,0.06745682]
[1766726663123,0.01395082,88951.0,88945.0,0.0112429]
[1766726663340,0.01395082,88951.0,88944.0,0.01124302]
[1766726663541,0.01395082,88951.0,88945.0,0.0112429]
[1766726663753,0.01395082,88951.0,88946.0,0.01124277]
[1766726663957,0.01395082,88951.0,88945.0,0.0112429]
[1766726664116,0.01395082,88951.0,88946.0,0.01124277]
[1766726664752,0.01395082,88951.0,88947.0,0.01124265]
[1766726665142,0.01395082,88951.0,88946.0,0.01124277]
[1766726665907,0.000549,88946.0,88944.0,0.01124302]
[1766726666242,0.01395082,88951.0,88944.0,0.01124302]
[1766726666494,0.01395082,88951.0,88942.0,0.06745936]
[1766726666495,0.01395082,88951.0,88942.0,0.01124328]
[1766726666900,0.001099,88942.0,88936.0,0.01128]
[1766726667106,0.001099,88942.0,88927.0,0.11582]
[1766726667107,0.001099,88942.0,88929.0,0.0085914]
[1766726667248,8.069e-05,88942.0,88930.0,0.01124479]
[1766726667887,8.069e-05,88942.0,88931.0,0.01124467]
[1766726668325,0.000549,88931.0,88930.0,0.01124479]
[1766726668664,8.069e-05,88942.0,88930.0,0.01124479]
[1766726668869,8.069e-05,88942.0,88931.0,0.01124467]
[1766726669293,8.069e-05,88942.0,88930.0,0.01124479]
[1766726669519,0.00055,88931.0,88928.0,0.01124505]
[1766726669916,8.069e-05,88942.0,88928.0,0.01124505]
[1766726670703,8.069e-05,88942.0,88927.0,0.01124517]
[1766726670921,0.01132397,88942.0,88928.0,0.01124505]
[1766726671121,0.01132397,88942.0,88926.0,0.01128]
[1766726671122,0.000549,88928.0,88926.0,0.0112453]
[1766726671307,0.000549,88928.0,88925.0,0.01124543]
[1766726671457,0.01355082,88937.0,88926.0,0.0112453]
[1766726671666,0.0105371,88936.0,88926.0,0.0112453]
[1766726671868,0.0105371,88935.0,88926.0,0.0112453]
[1766726672066,0.0105371,88934.0,88926.0,0.0112453]
[1766726672387,0.01355082,88937.0,88926.0,0.0112453]
[1766726672707,0.01053745,88936.0,88926.0,0.0112453]
[1766726672913,0.01355082,88937.0,88926.0,0.0112453]
[1766726672914,0.01053745,88935.0,88926.0,0.0112453]
[1766726673133,0.01053745,88934.0,88926.0,0.0112453]
[1766726673298,0.01355082,88937.0,88927.0,0.01124517]
[1766726673494,0.01053782,88936.0,88927.0,0.01124517]
[1766726673746,0.01053782,88935.0,88927.0,0.01124517]
[1766726673950,0.01053782,88934.0,88927.0,0.01124517]
[1766726674133,0.01355082,88937.0,88927.0,0.01124517]
[1766726674341,0.01053782,88936.0,88927.0,0.01124517]
[1766726674544,0.01053782,88935.0,88926.0,0.0112453]
[1766726674744,0.01355082,88937.0,88925.0,0.067472]
[1766726674745,0.01053782,88934.0,88925.0,0.01124543]
[1766726674951,0.01355082,88937.0,88926.0,0.0112453]
[1766726675161,0.01053824,88936.0,88925.0,0.01124543]
[1766726675338,0.01053824,88935.0,88926.0,0.0112453]
[1766726675663,0.01053824,88934.0,88926.0,0.0112453]
[1766726675865,0.01355082,88937.0,88926.0,0.0112453]
[1766726676069,0.01053863,88936.0,88926.0,0.0112453]
[1766726676267,0.01053863,88935.0,88925.0,0.01124543]
[1766726676485,0.01053863,88934.0,88924.0,0.01124555]
[1766726676646,0.01355082,88937.0,88924.0,0.01124555]
[1766726676845,0.01053895,88936.0,88926.0,0.0112453]
[1766726677052,0.01053895,88935.0,88926.0,0.0112453]
[1766726677245,0.01053895,88934.0,88925.0,0.01124543]
[1766726677431,0.01355082,88937.0,88925.0,0.01124543]
[1766726677632,0.0105392,88936.0,88925.0,0.01124543]
[1766726677855,0.0105392,88935.0,88924.0,0.01124555]
[1766726678049,0.01355082,88937.0,88925.0,0.01124543]
[1766726678234,0.0105392,88936.0,88925.0,0.01124543]
[1766726678416,0.0105392,88935.0,88923.0,0.02252568]
[1766726678616,0.01053946,88934.0,88923.0,0.02252568]
[1766726678935,0.01355082,88937.0,88924.0,0.01124555]
[1766726679136,0.01053952,88936.0,88924.0,0.01124555]
[1766726679357,0.01053952,88935.0,88924.0,0.01128]
[1766726679563,0.01355082,88937.0,88924.0,0.02252555]
[1766726679760,0.01053969,88936.0,88924.0,0.02252555]
[1766726679958,0.01049025,88935.0,88924.0,0.02252555]
[1766726680162,0.01355082,88937.0,88924.0,0.02252555]
[1766726680361,0.01355082,88937.0,88925.0,0.01124543]
[1766726680540,0.01355082,88937.0,88924.0,0.02252555]
[1766726681130,0.01355082,88937.0,88925.0,0.01124543]
[1766726681774,0.01355082,88937.0,88926.0,0.0112453]
[1766726681952,0.01355082,88937.0,88925.0,0.01124543]
[1766726682488,0.01355082,88937.0,88924.0,0.02252555]
[1766726683166,0.02479473,88937.0,88924.0,0.01128]
[1766726683750,0.02479473,88937.0,88922.0,0.01124581]
[1766726683957,0.02479473,88937.0,88924.0,0.01128]
[1766726684884,0.06746499,88935.0,88924.0,0.01128]
[1766726685668,0.01124505,88928.0,88924.0,0.01128]
[1766726685874,0.01124467,88931.0,88920.0,2.2e-07]
[1766726685875,0.01124568,88923.0,88920.0,2.2e-07]
[1766726686123,0.01124619,88919.0,88910.0,0.0002]
[1766726686326,0.01124682,88914.0,88910.0,0.0002]
[1766726686566,0.05623577,88912.0,88910.0,0.0002]
[1766726686778,0.05623577,88912.0,88887.0,0.01125023]
[1766726686779,0.01124796,88905.0,88900.0,0.01128]
[1766726686988,0.01124732,88910.0,88900.0,0.01128]
[1766726687190,0.01124732,88910.0,88893.0,0.01124947]
[1766726687191,0.01124745,88909.0,88895.0,0.01124922]
[1766726687307,0.01124745,88909.0,88899.0,0.01128]
[1766726687506,0.01124732,88910.0,88899.0,0.01138778]
[1766726687843,0.01124745,88909.0,88899.0,0.01138778]
[1766726688034,0.01124732,88910.0,88899.0,0.01138778]
[1766726688238,0.01124745,88909.0,88899.0,0.01138778]
[1766726688852,0.01124758,88908.0,88899.0,0.01138778]
[1766726689214,0.0112477,88907.0,88899.0,0.01138778]
[1766726689417,0.01124758,88908.0,88899.0,0.01138778]
[1766726689850,0.06748556,88908.0,88899.0,0.01138778]
[1766726690048,0.0112477,88907.0,88899.0,0.01138778]
[1766726691261,0.01124783,88906.0,88899.0,0.01138778]
[1766726691456,0.0112477,88907.0,88899.0,0.01138778]
[1766726691673,0.01124758,88908.0,88899.0,0.01138778]
[1766726692084,0.0112477,88907.0,88899.0,0.01138778]
[1766726693046,0.06748675,88907.0,88899.0,0.00010778]
[1766726693162,0.01022263,88909.0,88900.0,0.12084]
[1766726693363,0.01124783,88906.0,88900.0,0.12084]
[1766726693714,0.23619023,88912.0,88900.0,0.12084]
[1766726693999,0.01124682,88914.0,88900.0,0.12084]
[1766726694441,0.01124682,88914.0,88900.0,0.13208859]
[1766726694622,0.01144644,88917.0,88900.0,0.13208859]
[1766726694854,0.01124656,88916.0,88902.0,0.13208834]
[1766726695065,0.01144644,88917.0,88902.0,0.13208834]
[1766726695277,0.01124656,88916.0,88902.0,0.12084]
[1766726695463,0.01124669,88915.0,88902.0,0.12084]
[1766726696255,0.01124682,88914.0,88902.0,0.12084]
[1766726696434,0.01124656,88916.0,88902.0,0.12084]
[1766726697203,0.01124669,88915.0,88902.0,0.13212]
[1766726698063,0.01124656,88916.0,88902.0,0.13212]
[1766726698952,0.0002,88917.0,88904.0,0.12084]
[1766726699159,0.01144644,88917.0,88904.0,0.12084]
[1766726699966,0.01124694,88913.0,88904.0,0.12084]
[1766726700168,0.01124669,88915.0,88904.0,0.12084]
[1766726700569,0.01124694,88913.0,88904.0,0.12084]
[1766726700847,0.0002,88917.0,88904.0,0.12084]
[1766726700992,0.01124581,88922.0,88902.0,0.02252834]
[1766726700993,0.0112453,88926.0,88907.0,0.1320877]
[1766726701210,0.23614281,88930.0,88902.0,0.01128]
[1766726701211,0.02422475,88929.0,88914.0,0.01124682]
[1766726701412,0.01124492,88929.0,88915.0,0.12084]
[1766726701614,0.01128,88930.0,88918.0,0.12084]
[1766726701937,0.01124505,88928.0,88918.0,0.12084]
[1766726702137,0.01128,88930.0,88918.0,0.12084]
[1766726702318,0.01124505,88928.0,88918.0,0.12084]
[1766726706387,0.01124492,88929.0,88918.0,0.12084]
[1766726706971,0.01124505,88928.0,88918.0,0.12084]
[1766726707911,0.01124492,88929.0,88918.0,0.12084]
[1766726708598,0.01124505,88928.0,88918.0,0.12084]
[1766726708761,0.01124492,88929.0,88918.0,0.12084]
[1766726709216,0.01124505,88928.0,88918.0,0.12084]
[1766726710584,0.01124517,88927.0,88918.0,0.12084]
[1766726711212,0.01124505,88928.0,88918.0,0.12084]
[1766726711515,0.01124492,88929.0,88918.0,0.12084]
[1766726711829,0.01124517,88927.0,88918.0,0.12084]
[1766726712656,0.09172139,88929.0,88918.0,0.12084]
[1766726712657,0.0354964,88929.0,88918.0,0.12084]
[1766726712775,0.01124492,88929.0,88918.0,0.12084]
[1766726714433,0.02252479,88930.0,88918.0,0.12084]
[1766726714594,0.01052964,88929.0,88918.0,0.12084]
[1766726714793,0.01124492,88929.0,88918.0,0.12084]
[1766726715127,0.02252479,88930.0,88918.0,0.12084]
[1766726715328,0.01052964,88929.0,88918.0,0.12084]
[1766726715633,0.01128,88930.0,88918.0,0.12084]
[1766726715929,0.01053118,88929.0,88918.0,0.12084]
[1766726716077,0.01128,88930.0,88918.0,0.12084]
[1766726716279,0.01053118,88929.0,88918.0,0.13208631]
[1766726716499,0.01128,88930.0,88919.0,0.12081]
[1766726716704,0.0105309,88929.0,88919.0,0.12081]
[1766726716912,0.01128,88930.0,88919.0,0.12081]
[1766726717111,0.0105309,88929.0,88919.0,0.12081]
[1766726717311,0.01128,88930.0,88919.0,0.12081]
[1766726717510,0.01053112,88929.0,88919.0,0.12081]
[1766726717807,0.02252479,88930.0,88919.0,0.12081]
[1766726718049,0.01053112,88929.0,88919.0,0.12081]
[1766726718253,0.01128,88930.0,88919.0,0.12081]
[1766726722312,0.01128,88930.0,88915.0,0.05623317]
[1766726722313,0.02425148,88934.0,88927.0,0.05622545]
[1766726722610,0.01128,88935.0,88926.0,0.1320553]
[1766726722796,0.01128,88935.0,88922.0,0.01128]
[1766726722797,0.01053231,88934.0,88922.0,0.01127951]
[1766726722960,0.01124416,88935.0,88922.0,0.13208951]
[1766726723158,0.01053239,88934.0,88922.0,0.13208951]
[1766726723472,8.068e-05,88934.0,88922.0,0.13208951]
[1766726723682,0.01124441,88933.0,88922.0,0.13208951]
[1766726723908,0.01124467,88931.0,88922.0,0.13154051]
[1766726724203,0.01124454,88932.0,88922.0,0.13154051]
[1766726724743,0.01124441,88933.0,88922.0,0.13154051]
[1766726725148,0.01124454,88932.0,88922.0,0.13154051]
[1766726725520,0.01132497,88934.0,88922.0,0.13154051]
[1766726725670,0.01124441,88933.0,88922.0,0.13154051]
[1766726727325,0.01132497,88934.0,88922.0,0.13154051]
[1766726727519,0.02178098,88933.0,88922.0,0.13154051]
[1766726727698,0.01124441,88933.0,88922.0,0.13154051]
[1766726728017,0.01124441,88933.0,88921.0,0.01128]
[1766726728219,0.01124441,88933.0,88921.0,0.00022975]
[1766726728424,0.01124441,88933.0,88921.0,0.01128]
[1766726728719,0.01124441,88933.0,88921.0,0.00022975]
[1766726729168,0.01124441,88933.0,88921.0,1e-08]
[1766726729461,0.01054113,88932.0,88921.0,1e-08]
[1766726729613,0.01124441,88933.0,88922.0,0.12081]
[1766726729812,0.01054112,88932.0,88921.0,1e-08]
[1766726730010,0.01132497,88934.0,88921.0,1e-08]
[1766726730288,0.01054113,88933.0,88922.0,0.06452975]
[1766726730508,0.01054113,88932.0,88922.0,0.06452975]
[1766726730792,0.01132497,88934.0,88922.0,0.06452975]
[1766726730994,0.01054091,88933.0,88922.0,0.06452975]
[1766726731296,0.01054091,88933.0,88920.0,0.01124606]
[1766726731297,0.01054091,88932.0,88920.0,0.02252606]
[1766726731629,8.068e-05,88934.0,88921.0,0.12081]
[1766726731827,0.01054145,88933.0,88921.0,0.12081]
[1766726731980,0.01054145,88932.0,88921.0,0.12081]
[1766726732162,0.01132497,88934.0,88921.0,0.12081]
[1766726732358,0.02178586,88933.0,88921.0,0.12081]
[1766726732590,0.01054145,88932.0,88921.0,0.12081]
[1766726733335,0.01132497,88934.0,88921.0,0.12081]
[1766726733451,0.02178611,88933.0,88921.0,0.12081]
[1766726733656,0.0105417,88932.0,88921.0,0.12081]
[1766726733858,0.01132497,88934.0,88921.0,0.12081]
[1766726734063,0.01054169,88933.0,88921.0,0.12081]
[1766726734277,0.01054169,88932.0,88921.0,0.13205593]
[1766726734485,8.068e-05,88934.0,88921.0,0.13205593]
[1766726734686,0.01054156,88933.0,88921.0,0.12081]
[1766726734877,0.01054156,88932.0,88921.0,0.12081]